[Event "Titled Tuesday Blitz April 25 Early 2023"]
[White "Henriquez Villagra, Cristobal"]
[Black "Sarana, Alexey"]
[WhiteFideId "3409350"]
[BlackFideId "24133795"]
[WhiteElo "2542"]
[BlackElo "2714"]
[Result "0-1"]
[Round "09"]
[TimeControl "180+2"]
[Date "2023.04.25"]
[WhiteClock "0:00:08"]
[BlackClock "0:00:11"]

1. e4 {[%clk 0:03:00]}  c5 {[%clk 0:02:06]} 2. Nc3 {[%clk 0:02:58]}  d6 {[%clk 0:02:06]} 3. g3 {[%clk 0:02:59]}  g6 {[%clk 0:02:06]} 4. Bg2 {[%clk 0:02:59]}  Bg7 {[%clk 0:02:07]} 5. d3 {[%clk 0:02:59]}  Nc6 {[%clk 0:02:07]} 6. f4 {[%clk 0:02:59]}  e6 {[%clk 0:02:07]} 7. Nf3 {[%clk 0:02:59]}  Nge7 {[%clk 0:02:08]} 8. O-O {[%clk 0:02:59]}  O-O {[%clk 0:02:09]} 9. Be3 {[%clk 0:02:59]}  Nd4 {[%clk 0:02:09]} 10. Kh1 {[%clk 0:02:46]}  Rb8 {[%clk 0:02:07]} 11. g4 {[%clk 0:02:19]}  f5 {[%clk 0:02:05]} 12. gxf5 {[%clk 0:02:11]}  exf5 {[%clk 0:02:06]} 13. Ne2 {[%clk 0:02:01]}  Nxf3 {[%clk 0:01:56]} 14. Bxf3 {[%clk 0:02:00]}  Bxb2 {[%clk 0:01:56]} 15. Rb1 {[%clk 0:01:56]}  Bg7 {[%clk 0:01:57]} 16. Qd2 {[%clk 0:01:35]}  b6 {[%clk 0:01:56]} 17. Bf2 {[%clk 0:01:29]}  Bb7 {[%clk 0:01:55]} 18. Bh4 {[%clk 0:01:30]}  Qd7 {[%clk 0:01:53]} 19. Ng3 {[%clk 0:01:27]}  fxe4 {[%clk 0:01:47]} 20. dxe4 {[%clk 0:01:26]}  Nc6 {[%clk 0:01:35]} 21. Bg2 {[%clk 0:01:22]}  Rbe8 {[%clk 0:01:29]} 22. Rbe1 {[%clk 0:01:21]}  Qg4 {[%clk 0:01:21]} 23. Bg5 {[%clk 0:01:14]}  h6 {[%clk 0:01:19]} 24. Bf3 {[%clk 0:00:40]}  Qh3 {[%clk 0:01:18]} 25. Bg2 {[%clk 0:00:40]}  Qd7 {[%clk 0:01:19]} 26. Bh4 {[%clk 0:00:39]}  Qg4 {[%clk 0:01:20]} 27. Qxd6 {[%clk 0:00:36]}  Qxh4 {[%clk 0:01:16]} 28. e5 {[%clk 0:00:36]}  Qe7 {[%clk 0:01:15]} 29. Qxg6 {[%clk 0:00:33]}  Nd4 {[%clk 0:01:08]} 30. f5 {[%clk 0:00:27]}  Qf7 {[%clk 0:00:51]} 31. Qg4 {[%clk 0:00:23]}  Bxg2+ {[%clk 0:00:49]} 32. Kxg2 {[%clk 0:00:24]}  Qd5+ {[%clk 0:00:49]} 33. Kh3 {[%clk 0:00:23]}  Rxe5 {[%clk 0:00:23]} 34. Nh5 {[%clk 0:00:17]}  Rf7 {[%clk 0:00:23]} 35. Rxe5 {[%clk 0:00:10]}  Qxe5 {[%clk 0:00:24]} 36. f6 {[%clk 0:00:11]}  Ne6 {[%clk 0:00:20]} 37. Nxg7 {[%clk 0:00:09]}  Nxg7 {[%clk 0:00:14]} 38. Qg6 {[%clk 0:00:08]}  Qh5+ {[%clk 0:00:11]} 0-1


[Site "https://www.chess.com"]

[Event "Titled Tuesday Blitz April 25 Early 2023"]
[White "Lazavik, Denis"]
[Black "Atakishiyev, Elmar"]
[WhiteFideId "13515110"]
[BlackFideId "13410547"]
[WhiteElo "2560"]
[BlackElo "2239"]
[Result "1-0"]
[Round "09"]
[TimeControl "180+2"]
[Date "2023.04.25"]
[WhiteClock "0:00:31"]
[BlackClock "0:00:03"]

1. d4 {[%clk 0:03:00]}  Nf6 {[%clk 0:02:58]} 2. c4 {[%clk 0:03:01]}  g6 {[%clk 0:02:58]} 3. Nc3 {[%clk 0:03:01]}  Bg7 {[%clk 0:02:58]} 4. e4 {[%clk 0:03:02]}  d6 {[%clk 0:02:58]} 5. h3 {[%clk 0:03:02]}  O-O {[%clk 0:02:58]} 6. Be3 {[%clk 0:03:03]}  e5 {[%clk 0:02:59]} 7. d5 {[%clk 0:03:03]}  a5 {[%clk 0:03:00]} 8. g4 {[%clk 0:02:59]}  Na6 {[%clk 0:03:00]} 9. Nge2 {[%clk 0:02:59]}  Nc5 {[%clk 0:02:59]} 10. Ng3 {[%clk 0:03:00]}  Bd7 {[%clk 0:02:59]} 11. Qd2 {[%clk 0:02:51]}  a4 {[%clk 0:02:58]} 12. f3 {[%clk 0:02:49]}  c6 {[%clk 0:02:48]} 13. Be2 {[%clk 0:02:49]}  Qa5 {[%clk 0:02:48]} 14. g5 {[%clk 0:02:35]}  Ne8 {[%clk 0:02:46]} 15. h4 {[%clk 0:02:35]}  f5 {[%clk 0:02:31]} 16. gxf6 {[%clk 0:02:34]}  Nxf6 {[%clk 0:02:19]} 17. h5 {[%clk 0:02:34]}  cxd5 {[%clk 0:02:07]} 18. cxd5 {[%clk 0:02:32]}  Rfc8 {[%clk 0:02:04]} 19. hxg6 {[%clk 0:02:26]}  hxg6 {[%clk 0:02:04]} 20. Nd1 {[%clk 0:02:18]}  Bb5 {[%clk 0:01:55]} 21. Qxa5 {[%clk 0:02:10]}  Rxa5 {[%clk 0:01:55]} 22. Rc1 {[%clk 0:02:08]}  Bxe2 {[%clk 0:01:50]} 23. Kxe2 {[%clk 0:02:09]}  b6 {[%clk 0:01:47]} 24. Nf2 {[%clk 0:02:02]}  Rb5 {[%clk 0:01:46]} 25. Rc2 {[%clk 0:02:02]}  Rf8 {[%clk 0:01:44]} 26. Nh3 {[%clk 0:01:53]}  Nh7 {[%clk 0:01:28]} 27. Nf1 {[%clk 0:01:52]}  Bf6 {[%clk 0:01:25]} 28. Nd2 {[%clk 0:01:52]}  Be7 {[%clk 0:01:18]} 29. Nc4 {[%clk 0:01:51]}  Ra8 {[%clk 0:01:13]} 30. Nf2 {[%clk 0:01:49]}  Rd8 {[%clk 0:01:02]} 31. Rg1 {[%clk 0:01:48]}  Kg7 {[%clk 0:01:02]} 32. Nd1 {[%clk 0:01:47]}  Nf6 {[%clk 0:00:53]} 33. Nc3 {[%clk 0:01:45]}  Rb4 {[%clk 0:00:53]} 34. Nb1 {[%clk 0:01:45]}  Nh5 {[%clk 0:00:52]} 35. Bd2 {[%clk 0:01:40]}  Nf4+ {[%clk 0:00:50]} 36. Kd1 {[%clk 0:01:34]}  Rxc4 {[%clk 0:00:37]} 37. Rxc4 {[%clk 0:01:35]}  Rh8 {[%clk 0:00:37]} 38. Rc2 {[%clk 0:01:15]}  Rh3 {[%clk 0:00:34]} 39. Rf1 {[%clk 0:01:14]}  g5 {[%clk 0:00:25]} 40. Nc3 {[%clk 0:01:13]}  Kg6 {[%clk 0:00:24]} 41. Be3 {[%clk 0:01:09]}  Nfd3 {[%clk 0:00:23]} 42. Rg2 {[%clk 0:01:04]}  Bf6 {[%clk 0:00:15]} 43. a3 {[%clk 0:00:37]}  Nf4 {[%clk 0:00:14]} 44. Rd2 {[%clk 0:00:33]}  Be7 {[%clk 0:00:14]} 45. Bxc5 {[%clk 0:00:32]}  bxc5 {[%clk 0:00:13]} 46. Nxa4 {[%clk 0:00:32]}  Rh8 {[%clk 0:00:12]} 47. Nb6 {[%clk 0:00:31]}  Rb8 {[%clk 0:00:11]} 48. Nc4 {[%clk 0:00:32]}  g4 {[%clk 0:00:08]} 49. Rg1 {[%clk 0:00:30]}  g3 {[%clk 0:00:05]} 50. Rxg3+ {[%clk 0:00:30]}  Kf7 {[%clk 0:00:06]} 51. Rh2 {[%clk 0:00:30]}  Rb3 {[%clk 0:00:04]} 52. Rh7+ {[%clk 0:00:31]}  Ke8 {[%clk 0:00:04]} 53. Rg8+ {[%clk 0:00:30]}  Kd7 {[%clk 0:00:03]} 54. Rgg7 {[%clk 0:00:31]}  Rxf3 {[%clk 0:00:03]} 55. Rxe7+ {[%clk 0:00:31]} 1-0


[Site "https://www.chess.com"]

[Event "Titled Tuesday Blitz April 25 Early 2023"]
[White "Shimanov, Aleksandr"]
[Black "Shuvalova, Polina"]
[WhiteFideId "4198603"]
[BlackFideId "24171760"]
[WhiteElo "2631"]
[BlackElo "2281"]
[Result "1-0"]
[Round "09"]
[TimeControl "180+2"]
[Date "2023.04.25"]
[WhiteClock "0:00:15"]
[BlackClock "0:00:02"]

1. d4 {[%clk 0:03:00]}  Nf6 {[%clk 0:02:59]} 2. Nf3 {[%clk 0:03:01]}  d5 {[%clk 0:02:59]} 3. c3 {[%clk 0:03:01]}  c6 {[%clk 0:02:51]} 4. Qc2 {[%clk 0:02:57]}  g6 {[%clk 0:02:50]} 5. Bf4 {[%clk 0:02:54]}  Bf5 {[%clk 0:02:46]} 6. Qb3 {[%clk 0:02:54]}  Qb6 {[%clk 0:02:47]} 7. e3 {[%clk 0:02:53]}  Nbd7 {[%clk 0:02:44]} 8. h3 {[%clk 0:02:52]}  Bg7 {[%clk 0:02:40]} 9. Be2 {[%clk 0:02:50]}  O-O {[%clk 0:02:30]} 10. O-O {[%clk 0:02:50]}  a5 {[%clk 0:02:24]} 11. c4 {[%clk 0:02:36]}  dxc4 {[%clk 0:02:14]} 12. Bxc4 {[%clk 0:02:31]}  a4 {[%clk 0:02:12]} 13. Qxb6 {[%clk 0:02:18]}  Nxb6 {[%clk 0:02:12]} 14. Be2 {[%clk 0:02:19]}  Nfd5 {[%clk 0:02:08]} 15. Be5 {[%clk 0:02:17]}  Rfc8 {[%clk 0:01:53]} 16. Bxg7 {[%clk 0:02:13]}  Kxg7 {[%clk 0:01:53]} 17. Nbd2 {[%clk 0:02:13]}  Nf6 {[%clk 0:01:35]} 18. a3 {[%clk 0:02:04]}  c5 {[%clk 0:01:32]} 19. Rac1 {[%clk 0:02:03]}  Nbd7 {[%clk 0:01:21]} 20. Rfd1 {[%clk 0:01:28]}  Rc7 {[%clk 0:01:03]} 21. Bb5 {[%clk 0:01:26]}  Rac8 {[%clk 0:00:36]} 22. Bxa4 {[%clk 0:01:23]}  Nb6 {[%clk 0:00:35]} 23. Bb5 {[%clk 0:01:20]}  c4 {[%clk 0:00:26]} 24. a4 {[%clk 0:00:29]}  c3 {[%clk 0:00:14]} 25. bxc3 {[%clk 0:00:30]}  Rxc3 {[%clk 0:00:15]} 26. Rxc3 {[%clk 0:00:31]}  Rxc3 {[%clk 0:00:16]} 27. Ra1 {[%clk 0:00:32]}  Bd3 {[%clk 0:00:12]} 28. Bxd3 {[%clk 0:00:28]}  Rxd3 {[%clk 0:00:12]} 29. a5 {[%clk 0:00:29]}  Nc8 {[%clk 0:00:08]} 30. Nc4 {[%clk 0:00:27]}  Rc3 {[%clk 0:00:07]} 31. Nfe5 {[%clk 0:00:23]}  Ne4 {[%clk 0:00:07]} 32. Rb1 {[%clk 0:00:21]}  Ncd6 {[%clk 0:00:05]} 33. Nxd6 {[%clk 0:00:21]}  exd6 {[%clk 0:00:06]} 34. Nf3 {[%clk 0:00:20]}  Rc2 {[%clk 0:00:06]} 35. Rxb7 {[%clk 0:00:19]}  Rxf2 {[%clk 0:00:06]} 36. Re7 {[%clk 0:00:17]}  d5 {[%clk 0:00:02]} 37. Rxe4 {[%clk 0:00:16]}  Ra2 {[%clk 0:00:02]} 38. Re5 {[%clk 0:00:17]}  Rxa5 {[%clk 0:00:03]} 39. Kh2 {[%clk 0:00:16]}  h5 {[%clk 0:00:02]} 40. e4 {[%clk 0:00:15]} 1-0


[Site "https://www.chess.com"]

[Event "Titled Tuesday Blitz April 25 Early 2023"]
[White "Bortnyk, Olexandr"]
[Black "Javakhadze, Zurab"]
[WhiteFideId "14120828"]
[BlackFideId "13603647"]
[WhiteElo "2734"]
[BlackElo "2381"]
[Result "1-0"]
[Round "09"]
[TimeControl "180+2"]
[Date "2023.04.25"]
[WhiteClock "0:00:52"]
[BlackClock "0:00:02"]

1. d4 {[%clk 0:03:00]}  d5 {[%clk 0:02:18]} 2. Nc3 {[%clk 0:03:00]}  Nf6 {[%clk 0:02:14]} 3. Bf4 {[%clk 0:03:00]}  e6 {[%clk 0:02:14]} 4. Nb5 {[%clk 0:02:58]}  Na6 {[%clk 0:02:14]} 5. e3 {[%clk 0:02:59]}  Be7 {[%clk 0:02:15]} 6. Nf3 {[%clk 0:02:59]}  O-O {[%clk 0:02:15]} 7. h4 {[%clk 0:03:00]}  c5 {[%clk 0:02:10]} 8. c3 {[%clk 0:02:58]}  Bd7 {[%clk 0:02:05]} 9. a4 {[%clk 0:02:57]}  Ne4 {[%clk 0:02:03]} 10. Bd3 {[%clk 0:02:55]}  f5 {[%clk 0:01:56]} 11. h5 {[%clk 0:02:51]}  Qb6 {[%clk 0:01:42]} 12. Ne5 {[%clk 0:02:49]}  Be8 {[%clk 0:01:42]} 13. f3 {[%clk 0:02:48]}  Nd6 {[%clk 0:01:39]} 14. h6 {[%clk 0:02:44]}  g6 {[%clk 0:01:36]} 15. a5 {[%clk 0:02:25]}  Qd8 {[%clk 0:01:34]} 16. Nxd6 {[%clk 0:02:26]}  Bxd6 {[%clk 0:01:33]} 17. Bxa6 {[%clk 0:02:07]}  bxa6 {[%clk 0:01:33]} 18. dxc5 {[%clk 0:02:08]}  Bxc5 {[%clk 0:01:30]} 19. b4 {[%clk 0:02:06]}  Be7 {[%clk 0:01:22]} 20. O-O {[%clk 0:02:02]}  Rc8 {[%clk 0:01:19]} 21. Qd4 {[%clk 0:01:59]}  Bf6 {[%clk 0:01:12]} 22. Qxa7 {[%clk 0:01:59]}  Bb5 {[%clk 0:00:54]} 23. Rfd1 {[%clk 0:01:39]}  Rxc3 {[%clk 0:00:50]} 24. Rac1 {[%clk 0:01:39]}  Qc8 {[%clk 0:00:39]} 25. Rxc3 {[%clk 0:01:38]}  Qxc3 {[%clk 0:00:39]} 26. Nd7 {[%clk 0:01:35]}  Bxd7 {[%clk 0:00:34]} 27. Qxd7 {[%clk 0:01:36]}  Qc8 {[%clk 0:00:35]} 28. Qd6 {[%clk 0:01:21]}  g5 {[%clk 0:00:29]} 29. Bg3 {[%clk 0:01:15]}  Kf7 {[%clk 0:00:29]} 30. b5 {[%clk 0:01:11]}  axb5 {[%clk 0:00:26]} 31. a6 {[%clk 0:01:12]}  Qa8 {[%clk 0:00:18]} 32. Rc1 {[%clk 0:01:07]}  Kg6 {[%clk 0:00:05]} 33. Rc7 {[%clk 0:01:04]}  Rc8 {[%clk 0:00:06]} 34. a7 {[%clk 0:00:52]}  Rxc7 {[%clk 0:00:03]} 35. Qxc7 {[%clk 0:00:53]}  b4 {[%clk 0:00:01]} 36. Qb8 {[%clk 0:00:53]}  Qc6 {[%clk 0:00:01]} 37. a8=Q {[%clk 0:00:52]}  Qc1+ {[%clk 0:00:02]} 38. Kh2 {[%clk 0:00:53]}  Qxe3 {[%clk 0:00:03]} 39. Qg8+ {[%clk 0:00:52]}  Kh5 {[%clk 0:00:02]} 40. Qae8+ {[%clk 0:00:52]} 1-0


[Site "https://www.chess.com"]

[Event "Titled Tuesday Blitz April 25 Early 2023"]
[White "Pranesh M"]
[Black "Sviridov, Valery"]
[WhiteFideId "35028600"]
[BlackFideId "4120680"]
[WhiteElo "2437"]
[BlackElo "2457"]
[Result "1-0"]
[Round "09"]
[TimeControl "180+2"]
[Date "2023.04.25"]
[WhiteClock "0:01:58"]
[BlackClock "0:01:05"]

1. e4 {[%clk 0:03:00]}  Nf6 {[%clk 0:02:59]} 2. e5 {[%clk 0:03:00]}  Nd5 {[%clk 0:02:59]} 3. Nf3 {[%clk 0:02:54]}  d6 {[%clk 0:02:59]} 4. d4 {[%clk 0:02:54]}  dxe5 {[%clk 0:02:59]} 5. Nxe5 {[%clk 0:02:55]}  c6 {[%clk 0:02:59]} 6. Nc3 {[%clk 0:02:55]}  Nxc3 {[%clk 0:02:58]} 7. bxc3 {[%clk 0:02:55]}  g6 {[%clk 0:02:59]} 8. Bc4 {[%clk 0:02:55]}  e6 {[%clk 0:02:56]} 9. Qf3 {[%clk 0:02:54]}  f6 {[%clk 0:02:42]} 10. Ng4 {[%clk 0:02:54]}  Bg7 {[%clk 0:02:34]} 11. Bh6 {[%clk 0:02:50]}  Bxh6 {[%clk 0:02:29]} 12. Nxh6 {[%clk 0:02:51]}  f5 {[%clk 0:02:24]} 13. h4 {[%clk 0:02:47]}  Qe7 {[%clk 0:02:21]} 14. O-O-O {[%clk 0:02:43]}  Kf8 {[%clk 0:02:14]} 15. g4 {[%clk 0:02:32]}  Kg7 {[%clk 0:02:14]} 16. Qf4 {[%clk 0:02:25]}  Rd8 {[%clk 0:01:52]} 17. Rde1 {[%clk 0:02:14]}  Qd6 {[%clk 0:01:33]} 18. Qg5 {[%clk 0:02:14]}  Qf8 {[%clk 0:01:05]} 19. gxf5 {[%clk 0:02:03]}  Qf6 {[%clk 0:01:05]} 20. Bxe6 {[%clk 0:01:59]}  Qxg5+ {[%clk 0:01:04]} 21. hxg5 {[%clk 0:01:59]}  Bxe6 {[%clk 0:01:05]} 22. Rxe6 {[%clk 0:01:58]} 1-0


[Site "https://www.chess.com"]

[Event "Titled Tuesday Blitz April 25 Early 2023"]
[White "Eljanov, Pavel"]
[Black "Wieczorek, Oskar"]
[WhiteFideId "14102951"]
[BlackFideId "1133950"]
[WhiteElo "2598"]
[BlackElo "2418"]
[Result "1-0"]
[Round "09"]
[TimeControl "180+2"]
[Date "2023.04.25"]
[WhiteClock "0:01:41"]
[BlackClock "0:00:41"]

1. c4 {[%clk 0:03:00]}  Nf6 {[%clk 0:02:57]} 2. g3 {[%clk 0:03:01]}  g6 {[%clk 0:02:55]} 3. Bg2 {[%clk 0:03:01]}  Bg7 {[%clk 0:02:56]} 4. Nc3 {[%clk 0:03:02]}  O-O {[%clk 0:02:57]} 5. d4 {[%clk 0:03:02]}  d6 {[%clk 0:02:55]} 6. Nf3 {[%clk 0:03:03]}  Nc6 {[%clk 0:02:55]} 7. O-O {[%clk 0:03:02]}  Bg4 {[%clk 0:02:56]} 8. h3 {[%clk 0:02:58]}  Bxf3 {[%clk 0:02:56]} 9. Bxf3 {[%clk 0:02:58]}  Nd7 {[%clk 0:02:57]} 10. e3 {[%clk 0:02:57]}  e5 {[%clk 0:02:58]} 11. d5 {[%clk 0:02:50]}  Ne7 {[%clk 0:02:58]} 12. Bg2 {[%clk 0:02:45]}  f5 {[%clk 0:02:57]} 13. e4 {[%clk 0:02:32]}  f4 {[%clk 0:02:39]} 14. h4 {[%clk 0:02:32]}  Kh8 {[%clk 0:02:40]} 15. Bh3 {[%clk 0:02:30]}  Ng8 {[%clk 0:02:27]} 16. b4 {[%clk 0:02:13]}  Bh6 {[%clk 0:02:24]} 17. c5 {[%clk 0:02:07]}  fxg3 {[%clk 0:01:55]} 18. fxg3 {[%clk 0:02:06]}  Rxf1+ {[%clk 0:01:22]} 19. Qxf1 {[%clk 0:02:07]}  Bxc1 {[%clk 0:01:23]} 20. Rxc1 {[%clk 0:02:06]}  dxc5 {[%clk 0:01:23]} 21. Qf7 {[%clk 0:01:52]}  Ndf6 {[%clk 0:00:54]} 22. bxc5 {[%clk 0:01:48]}  Qf8 {[%clk 0:00:42]} 23. Qxc7 {[%clk 0:01:41]}  Rc8 {[%clk 0:00:41]} 1-0


[Site "https://www.chess.com"]

[Event "Titled Tuesday Blitz April 25 Early 2023"]
[White "Esipenko, Andrey"]
[Black "Hua, Lefong"]
[WhiteFideId "24175439"]
[BlackFideId "2602253"]
[WhiteElo "2615"]
[BlackElo "2684"]
[Result "1-0"]
[Round "09"]
[TimeControl "180+2"]
[Date "2023.04.25"]
[WhiteClock "0:01:56"]
[BlackClock "0:00:26"]

1. c4 {[%clk 0:02:59]}  Nf6 {[%clk 0:02:59]} 2. Nc3 {[%clk 0:02:59]}  g6 {[%clk 0:03:00]} 3. e4 {[%clk 0:02:59]}  d6 {[%clk 0:03:00]} 4. d4 {[%clk 0:03:00]}  Bg7 {[%clk 0:03:00]} 5. Bg5 {[%clk 0:02:59]}  O-O {[%clk 0:02:56]} 6. Be2 {[%clk 0:02:59]}  c5 {[%clk 0:02:54]} 7. d5 {[%clk 0:03:00]}  h6 {[%clk 0:02:49]} 8. Bh4 {[%clk 0:02:59]}  e6 {[%clk 0:02:43]} 9. Nf3 {[%clk 0:02:59]}  exd5 {[%clk 0:02:39]} 10. cxd5 {[%clk 0:03:00]}  Bg4 {[%clk 0:02:36]} 11. Nd2 {[%clk 0:02:58]}  Bxe2 {[%clk 0:02:35]} 12. Qxe2 {[%clk 0:02:59]}  a6 {[%clk 0:02:32]} 13. a4 {[%clk 0:02:59]}  Nbd7 {[%clk 0:02:25]} 14. O-O {[%clk 0:02:58]}  Re8 {[%clk 0:02:19]} 15. Rae1 {[%clk 0:02:52]}  Qc7 {[%clk 0:02:03]} 16. Kh1 {[%clk 0:02:44]}  Rac8 {[%clk 0:01:51]} 17. Nc4 {[%clk 0:02:40]}  Nb6 {[%clk 0:01:44]} 18. Nxb6 {[%clk 0:02:28]}  Qxb6 {[%clk 0:01:43]} 19. f4 {[%clk 0:02:28]}  Nxe4 {[%clk 0:01:28]} 20. Nxe4 {[%clk 0:02:24]}  f5 {[%clk 0:01:29]} 21. Qd3 {[%clk 0:01:58]}  c4 {[%clk 0:01:12]} 22. Qg3 {[%clk 0:01:58]}  fxe4 {[%clk 0:00:57]} 23. Qxg6 {[%clk 0:01:58]}  Qxb2 {[%clk 0:00:51]} 24. f5 {[%clk 0:01:56]}  Kh8 {[%clk 0:00:25]} 25. f6 {[%clk 0:01:56]}  Bf8 {[%clk 0:00:26]} 26. f7 {[%clk 0:01:56]} 1-0


[Site "https://www.chess.com"]

[Event "Titled Tuesday Blitz April 25 Early 2023"]
[White "Zhigalko, Sergei"]
[Black "Kushko, Dmitriy"]
[WhiteFideId "13502956"]
[BlackFideId "14162261"]
[WhiteElo "2626"]
[BlackElo "2230"]
[Result "0-1"]
[Round "09"]
[TimeControl "180+2"]
[Date "2023.04.25"]
[WhiteClock "0:00:15"]
[BlackClock "0:00:17"]

1. e4 {[%clk 0:03:00]}  g6 {[%clk 0:02:59]} 2. d4 {[%clk 0:03:01]}  Bg7 {[%clk 0:03:00]} 3. Nc3 {[%clk 0:03:01]}  d6 {[%clk 0:03:00]} 4. Nf3 {[%clk 0:03:02]}  a6 {[%clk 0:02:59]} 5. Be3 {[%clk 0:03:03]}  b5 {[%clk 0:02:58]} 6. a4 {[%clk 0:03:03]}  b4 {[%clk 0:02:58]} 7. Ne2 {[%clk 0:03:04]}  Bb7 {[%clk 0:02:58]} 8. Ng3 {[%clk 0:03:05]}  Nf6 {[%clk 0:02:58]} 9. Bd3 {[%clk 0:03:05]}  Nbd7 {[%clk 0:02:57]} 10. a5 {[%clk 0:03:05]}  c5 {[%clk 0:02:56]} 11. c3 {[%clk 0:03:06]}  O-O {[%clk 0:02:55]} 12. O-O {[%clk 0:03:06]}  bxc3 {[%clk 0:02:27]} 13. bxc3 {[%clk 0:03:07]}  Ng4 {[%clk 0:02:07]} 14. Bd2 {[%clk 0:03:05]}  cxd4 {[%clk 0:02:05]} 15. cxd4 {[%clk 0:03:05]}  e5 {[%clk 0:02:06]} 16. h3 {[%clk 0:03:00]}  Ngf6 {[%clk 0:02:06]} 17. Bb4 {[%clk 0:03:00]}  Qe7 {[%clk 0:01:33]} 18. Re1 {[%clk 0:02:46]}  Rfd8 {[%clk 0:01:24]} 19. Rb1 {[%clk 0:02:43]}  Rab8 {[%clk 0:01:15]} 20. Qd2 {[%clk 0:02:33]}  exd4 {[%clk 0:01:13]} 21. e5 {[%clk 0:02:33]}  Ne8 {[%clk 0:01:00]} 22. exd6 {[%clk 0:02:20]}  Qf6 {[%clk 0:01:00]} 23. Be4 {[%clk 0:02:13]}  Bc8 {[%clk 0:00:40]} 24. Bd5 {[%clk 0:01:17]}  Nxd6 {[%clk 0:00:34]} 25. Ng5 {[%clk 0:01:14]}  Bh6 {[%clk 0:00:19]} 26. f4 {[%clk 0:01:12]}  Rf8 {[%clk 0:00:13]} 27. Kh2 {[%clk 0:00:16]}  Rb5 {[%clk 0:00:12]} 28. Bc6 {[%clk 0:00:09]}  Rxg5 {[%clk 0:00:10]} 29. fxg5 {[%clk 0:00:08]}  Bxg5 {[%clk 0:00:11]} 30. Qd3 {[%clk 0:00:04]}  Bf4 {[%clk 0:00:11]} 31. Bxd7 {[%clk 0:00:03]}  Bxd7 {[%clk 0:00:11]} 32. Rf1 {[%clk 0:00:04]}  Qe5 {[%clk 0:00:10]} 33. Rbe1 {[%clk 0:00:04]}  Qg5 {[%clk 0:00:10]} 34. Rxf4 {[%clk 0:00:02]}  Qxf4 {[%clk 0:00:10]} 35. Kh1 {[%clk 0:00:02]}  Bb5 {[%clk 0:00:09]} 36. Qf3 {[%clk 0:00:02]}  Qxf3 {[%clk 0:00:09]} 37. gxf3 {[%clk 0:00:03]}  Rd8 {[%clk 0:00:09]} 38. Rd1 {[%clk 0:00:03]}  Nc4 {[%clk 0:00:09]} 39. Ne4 {[%clk 0:00:03]}  d3 {[%clk 0:00:09]} 40. Bc3 {[%clk 0:00:03]}  Ba4 {[%clk 0:00:08]} 41. Ra1 {[%clk 0:00:02]}  Bb3 {[%clk 0:00:08]} 42. Nf6+ {[%clk 0:00:02]}  Kf8 {[%clk 0:00:07]} 43. Nxh7+ {[%clk 0:00:02]}  Kg8 {[%clk 0:00:06]} 44. Nf6+ {[%clk 0:00:03]}  Kf8 {[%clk 0:00:07]} 45. Nh7+ {[%clk 0:00:02]}  Ke8 {[%clk 0:00:06]} 46. Re1+ {[%clk 0:00:01]}  Kd7 {[%clk 0:00:07]} 47. Rb1 {[%clk 0:00:02]}  Bc2 {[%clk 0:00:07]} 48. Rb7+ {[%clk 0:00:01]}  Kc6 {[%clk 0:00:07]} 49. Rxf7 {[%clk 0:00:01]}  d2 {[%clk 0:00:08]} 50. Bxd2 {[%clk 0:00:02]}  Rxd2 {[%clk 0:00:08]} 51. Ng5 {[%clk 0:00:02]}  Ne3 {[%clk 0:00:08]} 52. Rf6+ {[%clk 0:00:01]}  Kb5 {[%clk 0:00:08]} 53. Ne4 {[%clk 0:00:02]}  Bxe4 {[%clk 0:00:07]} 54. fxe4 {[%clk 0:00:02]}  Kxa5 {[%clk 0:00:07]} 55. Rxg6 {[%clk 0:00:03]}  Nc4 {[%clk 0:00:07]} 56. h4 {[%clk 0:00:03]}  Rd4 {[%clk 0:00:06]} 57. Re6 {[%clk 0:00:02]}  Rd6 {[%clk 0:00:07]} 58. Rxd6 {[%clk 0:00:02]}  Nxd6 {[%clk 0:00:06]} 59. e5 {[%clk 0:00:02]}  Nf5 {[%clk 0:00:07]} 60. h5 {[%clk 0:00:03]}  Kb5 {[%clk 0:00:07]} 61. e6 {[%clk 0:00:03]}  Kc6 {[%clk 0:00:07]} 62. Kg2 {[%clk 0:00:04]}  Kd6 {[%clk 0:00:08]} 63. Kf3 {[%clk 0:00:05]}  Kxe6 {[%clk 0:00:08]} 64. Ke2 {[%clk 0:00:04]}  Kd5 {[%clk 0:00:08]} 65. Kd3 {[%clk 0:00:05]}  Kc5 {[%clk 0:00:08]} 66. Kc3 {[%clk 0:00:05]}  Nh6 {[%clk 0:00:09]} 67. Kb3 {[%clk 0:00:05]}  a5 {[%clk 0:00:09]} 68. Ka4 {[%clk 0:00:06]}  Kb6 {[%clk 0:00:10]} 69. Ka3 {[%clk 0:00:07]}  Kb5 {[%clk 0:00:10]} 70. Kb3 {[%clk 0:00:08]}  a4+ {[%clk 0:00:11]} 71. Ka3 {[%clk 0:00:08]}  Nf5 {[%clk 0:00:11]} 72. Ka2 {[%clk 0:00:09]}  Kb4 {[%clk 0:00:11]} 73. Kb2 {[%clk 0:00:10]}  Nh6 {[%clk 0:00:12]} 74. Ka2 {[%clk 0:00:11]}  Kc4 {[%clk 0:00:12]} 75. Kb2 {[%clk 0:00:12]}  Kb5 {[%clk 0:00:13]} 76. Ka3 {[%clk 0:00:12]}  Ka5 {[%clk 0:00:13]} 77. Ka2 {[%clk 0:00:13]}  Kb4 {[%clk 0:00:14]} 78. Kb2 {[%clk 0:00:14]}  a3+ {[%clk 0:00:15]} 79. Ka2 {[%clk 0:00:14]}  Ka4 {[%clk 0:00:15]} 80. Ka1 {[%clk 0:00:15]}  Kb3 {[%clk 0:00:15]} 81. Kb1 {[%clk 0:00:16]}  Nf5 {[%clk 0:00:16]} 82. Ka1 {[%clk 0:00:12]}  Nd4 {[%clk 0:00:16]} 83. h6 {[%clk 0:00:13]}  Nc2+ {[%clk 0:00:16]} 84. Kb1 {[%clk 0:00:13]}  a2+ {[%clk 0:00:17]} 85. Kc1 {[%clk 0:00:14]}  a1=Q+ {[%clk 0:00:18]} 86. Kd2 {[%clk 0:00:15]}  Qh8 {[%clk 0:00:17]} 0-1


[Site "https://www.chess.com"]